bitfinex/quotes_SOLUSD_20250307
["timestamp","ask_amount","ask_price","bid_price","bid_amount"]
[1741365192471,23.54514886,142.99,142.93,42.35691369]
[1741365192472,147.40206255,142.99,142.93,42.35691369]
[1741365192691,81.5,142.99,142.95,42.35691369]
[1741365192898,81.5,142.99,142.96,42.35691369]
[1741365193062,81.5,143.02,142.98,42.35691369]
[1741365193261,81.5,143.02,142.99,42.35691369]
[1741365193498,81.5,143.02,143.0,42.35691369]
[1741365193662,123.85691369,143.04,142.94,42.35691369]
[1741365193863,23.54424886,143.02,142.97,42.35691369]
[1741365194105,81.5,143.03,142.99,42.35691369]
[1741365194264,28.23146834,143.09,143.02,42.35691369]
[1741365194265,81.5,143.06,143.02,42.35691369]
[1741365194466,81.5,143.09,143.05,42.35691369]
[1741365194679,128.74891369,143.09,142.99,282.79229968]
[1741365194989,18.933972,143.07,142.99,151.44]
[1741365195158,42.35691369,143.02,142.99,151.44]
[1741365195362,42.35691369,143.01,142.94,42.35691369]
[1741365195564,142.79088569,143.0,142.94,42.35691369]
[1741365195865,142.79088569,143.0,142.93,42.35691369]
[1741365196089,4.8954,142.99,142.93,42.35691369]
[1741365196364,42.35691369,143.04,142.97,42.35691369]
[1741365196559,123.85691369,143.05,142.99,42.35691369]
[1741365196793,123.85691369,143.05,142.96,0.033]
[1741365196794,23.827772,143.04,142.98,42.35691369]
[1741365196963,47.25071369,143.04,142.98,42.35691369]
[1741365197164,4.8938,143.04,142.99,42.35691369]
[1741365197385,123.85691369,143.05,142.99,42.35691369]
[1741365197584,4.9231,143.06,143.01,42.35691369]
[1741365197777,0.03,143.06,143.04,42.35691369]
[1741365198186,0.03,143.06,143.0,42.35691369]
[1741365198498,123.88691369,143.06,142.99,52.79691369]
[1741365198799,81.53,143.06,143.01,42.35691369]
[1741365199093,0.03,143.06,143.05,42.35691369]
[1741365199472,0.03,143.06,143.05,354.35691369]
[1741365200164,0.03,143.06,143.05,42.35691369]
[1741365200370,0.03,143.06,143.03,193.79691369]
[1741365200578,0.03,143.06,143.03,151.44]
[1741365200780,0.03,143.06,143.05,42.35691369]
[1741365202084,0.03,143.06,143.05,180.69971337]
[1741365202771,0.03,143.06,143.05,173.70921337]
[1741365203178,0.03,143.06,143.05,485.70921337]
[1741365203385,0.03,143.06,143.05,492.69971337]
[1741365203606,0.03,143.06,143.05,354.35691369]
[1741365203772,0.03,143.06,143.05,361.34741369]
[1741365204107,0.03,143.06,143.05,180.69971337]
[1741365204813,0.03,143.16,143.09,2.0]
[1741365204976,0.03,143.16,143.15,84.71382738]
[1741365205298,0.03,143.2,143.16,20.933972]
[1741365205464,0.03,143.2,143.17,1.04712466]
[1741365205667,10.65905873,143.28,143.19,86.71382738]
[1741365205864,10.65905873,143.28,143.26,42.35691369]
[1741365206291,15.54465873,143.28,143.24,42.35691369]
[1741365206468,15.54465873,143.28,143.23,42.35691369]
[1741365206976,10.65905873,143.28,143.26,42.35691369]
[1741365207187,10.65905873,143.28,143.27,42.35691369]
[1741365207571,0.03,143.29,143.27,42.35691369]
[1741365207870,0.03,143.29,143.22,184.14921337]
[1741365208082,0.03,143.29,143.25,42.35691369]
[1741365208291,0.03,143.29,143.28,42.35691369]
[1741365208586,0.03,143.31,143.29,18.933972]
[1741365208786,0.03,143.35,143.31,18.933972]
[1741365208989,0.03,143.35,143.31,131.35229968]
[1741365209219,0.03,143.35,143.3,10.44]
[1741365209495,0.03,143.35,143.31,42.35691369]
[1741365209694,0.03,143.35,143.32,42.35691369]
[1741365209893,0.03,143.35,143.34,42.35691369]
[1741365210276,0.03,143.35,143.33,42.35691369]
[1741365210482,0.03,143.35,143.26,161.74]
[1741365210687,42.38691369,143.35,143.29,42.35691369]
[1741365210890,42.35691369,143.32,143.26,293.09229968]
[1741365211085,42.35691369,143.31,143.26,161.74]
[1741365211277,81.5,143.33,143.26,204.09691369]
[1741365211496,42.35691369,143.32,143.26,204.09691369]
[1741365211800,0.03,143.35,143.28,42.35691369]
[1741365211985,0.03,143.35,143.32,42.35691369]
[1741365212184,0.03,143.35,143.34,42.35691369]
[1741365212395,0.03,143.35,143.28,141.77229968]
[1741365213097,0.03,143.35,143.29,42.35691369]
[1741365213300,42.38691369,143.35,143.28,42.35691369]
[1741365213483,42.35691369,143.32,143.26,151.32]
[1741365213673,42.35691369,143.31,143.26,151.32]
[1741365213873,123.85691369,143.3,143.26,151.32]
[1741365214096,61.29088569,143.27,143.18,10.42]
[1741365214300,42.35691369,143.24,143.18,10.42]
[1741365214597,18.933972,143.25,143.17,42.35691369]
[1741365215293,42.35691369,143.21,143.16,151.2]
[1741365215474,81.5,143.23,143.16,151.2]
[1741365215790,81.5,143.23,143.18,42.35691369]
[1741365215997,35.75134886,143.26,143.2,42.35691369]
[1741365215998,4.8862,143.26,143.2,42.35691369]
[1741365216204,42.35691369,143.25,143.18,42.35691369]
[1741365216411,18.933972,143.24,143.16,151.2]
[1741365216721,42.35691369,143.21,143.16,151.2]
[1741365217084,42.35691369,143.2,143.16,151.2]
[1741365217285,42.35691369,143.18,143.16,151.2]
[1741365217483,81.5,143.21,143.16,151.2]
[1741365217689,42.35691369,143.2,143.16,151.2]
[1741365217886,42.35691369,143.19,143.16,151.2]
[1741365218281,47.24551369,143.19,143.16,151.2]
[1741365218686,42.35691369,143.2,143.16,151.2]
[1741365219103,81.5,143.21,143.16,151.2]
[1741365219291,18.64964886,143.26,143.18,42.35691369]
[1741365219491,42.35691369,143.26,143.19,42.35691369]
[1741365219912,42.35691369,143.25,143.16,151.2]
[1741365220108,18.933972,143.24,143.18,42.35691369]
[1741365220292,42.35691369,143.23,143.16,193.58991369]
[1741365220608,123.85691369,143.23,143.16,193.58991369]
[1741365220822,42.35691369,143.22,143.16,151.233]
[1741365221122,81.5,143.23,143.16,151.233]
[1741365221123,81.5,143.23,143.17,42.35691369]
[1741365221282,42.35691369,143.26,143.19,42.35691369]
[1741365221481,42.35691369,143.24,143.18,42.35691369]
[1741365221778,42.35691369,143.24,143.17,42.35691369]
[1741365222416,18.933972,143.26,143.19,42.35691369]
[1741365222904,42.35691369,143.26,143.19,42.35691369]
[1741365223105,42.35691369,143.25,143.19,42.35691369]
[1741365223308,86.3859,143.27,143.16,601.57029968]
[1741365223309,42.35691369,143.2,143.16,151.233]
[1741365223529,42.35691369,143.17,143.16,0.033]
[1741365223802,100.433972,143.16,143.06,151.2]
[1741365224004,61.29088569,143.17,143.06,151.2]
[1741365224005,42.35691369,143.11,143.06,151.2]
[1741365224235,42.35691369,143.12,143.06,151.2]
[1741365224384,123.85691369,143.15,143.08,42.35691369]
[1741365224588,81.5,143.14,143.09,42.35691369]
[1741365224783,81.5,143.19,143.11,42.35691369]
[1741365224999,42.35691369,143.17,143.06,168.6099]
[1741365225197,81.5,143.18,143.11,42.35691369]
[1741365225405,81.5,143.18,143.12,42.35691369]
[1741365225608,81.5,143.18,143.13,42.35691369]
[1741365226309,42.35691369,143.15,143.06,299.96219968]
[1741365226485,42.35691369,143.15,143.08,42.35691369]
[1741365226804,42.35691369,143.16,143.1,42.35691369]
[1741365227003,81.5,143.21,143.07,1.33247411]
[1741365227208,18.64964886,143.2,143.07,132.40045065]
[1741365227415,0.28432314,143.19,143.07,131.35229968]
[1741365227616,18.64964886,143.2,143.07,131.35229968]
[1741365227910,81.5,143.21,143.08,19.98179667]
[1741365228124,42.35691369,143.2,143.13,42.35691369]
[1741365228300,42.35691369,143.2,143.14,42.35691369]
[1741365228496,42.35691369,143.2,143.13,42.35691369]
[1741365228721,42.35691369,143.18,143.11,42.35691369]
[1741365228943,42.35691369,143.15,143.08,6.9887]
[1741365229145,18.933972,143.17,143.08,42.35691369]
[1741365229146,42.35691369,143.14,143.08,42.35691369]
[1741365229304,42.35691369,143.15,143.08,42.35691369]
[1741365229504,42.35691369,143.15,143.09,42.35691369]
[1741365229811,42.35691369,143.16,143.09,42.35691369]
[1741365230198,42.35691369,143.15,143.08,42.35691369]
[1741365230401,42.35691369,143.12,143.06,151.2]
[1741365230624,42.35691369,143.1,143.06,151.2]
[1741365231024,81.5,143.11,143.06,151.2]
[1741365231200,13.2258,143.14,143.08,42.35691369]
[1741365231201,81.5,143.14,143.08,42.35691369]
[1741365231609,81.5,143.14,143.09,42.35691369]
[1741365231805,81.5,143.14,143.08,42.35691369]
[1741365232142,81.5,143.14,143.09,42.35691369]
[1741365232438,81.5,143.14,143.1,49.34491369]
[1741365232616,81.5,143.14,143.09,49.34541369]
[1741365232806,81.5,143.14,143.1,42.35691369]
[1741365233001,81.5,143.14,143.09,42.35691369]
[1741365233406,81.5,143.14,143.08,0.033]
[1741365233407,81.5,143.14,143.11,42.35691369]
[1741365233910,81.5,143.17,143.13,42.35691369]
[1741365234109,0.03,143.2,143.15,42.35691369]
[1741365234317,0.03,143.2,143.16,42.35691369]
[1741365234818,0.03,143.2,143.18,42.35691369]
[1741365235015,0.03,143.2,143.19,42.35691369]
[1741365235207,0.03,143.2,143.18,151.26]
[1741365235734,0.03,143.2,143.19,42.35691369]
[1741365236027,0.03,143.2,143.18,151.26]
[1741365236216,0.03,143.2,143.19,42.35691369]
[1741365236419,0.03,143.2,143.19,49.34061369]
[1741365236731,0.03,143.2,143.19,42.35691369]
[1741365236927,0.03,143.2,143.19,173.70921337]
[1741365237109,81.5,143.31,143.19,131.35229968]
[1741365237110,4.8848,143.3,143.19,131.35229968]
[1741365237311,123.85691369,143.34,143.27,42.35691369]
[1741365237627,81.5,143.34,143.28,42.35691369]
[1741365237819,81.5,143.34,143.27,42.35691369]
[1741365237820,123.85691369,143.34,143.27,42.35691369]
[1741365238025,42.35691369,143.32,143.25,52.77691369]
[1741365238227,123.85691369,143.33,143.26,42.35691369]
[1741365238528,47.24181369,143.3,143.23,52.77691369]
[1741365238930,123.85691369,143.32,143.25,42.35691369]
[1741365239316,42.35691369,143.3,143.23,322.42]
[1741365239523,42.35691369,143.3,143.23,371.75861369]
[1741365239728,42.35691369,143.3,143.23,364.77691369]
[1741365239940,105.03384886,143.32,143.24,42.35691369]
[1741365239941,81.5,143.29,143.24,42.35691369]
[1741365240310,81.5,143.29,143.23,52.77691369]
[1741365240505,42.35691369,143.26,143.18,151.26]
[1741365240711,42.35691369,143.26,143.19,42.35691369]
[1741365241030,4.8851,143.3,143.22,42.35691369]
[1741365241230,18.933972,143.26,143.18,151.26]
[1741365241415,18.933972,143.24,143.1,297.36769968]
[1741365241742,42.35691369,143.18,143.11,42.35691369]
[1741365241930,123.85691369,143.17,143.1,151.18]
[1741365242143,42.35691369,143.15,143.1,151.18]
[1741365242431,81.5,143.14,143.1,151.18]
[1741365242633,12.2213,143.2,143.1,151.18]
[1741365242843,42.35691369,143.17,143.1,193.53691369]
[1741365243043,81.5,143.16,143.1,193.53691369]
[1741365243417,81.5,143.16,143.11,42.35691369]
[1741365243623,81.5,143.18,143.12,42.35691369]
[1741365243824,4.8883,143.2,143.14,42.35691369]
[1741365244041,81.5,143.2,143.14,42.35691369]
[1741365244234,81.5,143.2,143.16,42.35691369]
[1741365244615,81.5,143.2,143.15,42.35691369]
[1741365244815,81.5,143.2,143.17,42.35691369]
[1741365245014,128.74411369,143.23,143.17,42.35691369]
[1741365245246,42.35691369,143.22,143.12,148.73919968]
[1741365245452,42.35691369,143.21,143.14,42.35691369]
[1741365245627,81.5,143.2,143.14,42.35691369]
[1741365245950,4.8873,143.23,143.17,42.35691369]
[1741365246160,18.64964886,143.24,143.18,42.35691369]
[1741365246312,42.35691369,143.2,143.12,10.4]
[1741365246513,81.5,143.23,143.14,42.35691369]
[1741365246718,18.64964886,143.22,143.12,148.73939968]
[1741365247215,93.7144,143.28,143.14,0.28432314]
[1741365247426,81.5,143.3,143.16,0.28432314]
[1741365247716,4.9147,143.31,143.26,42.35691369]
[1741365247923,42.35691369,143.3,143.23,42.35691369]
[1741365248128,42.35691369,143.29,143.22,203.95691369]
[1741365248338,81.53,143.31,143.26,42.35691369]
[1741365248637,18.933972,143.3,143.24,42.35691369]
[1741365248844,18.933972,143.3,143.22,161.6]
[1741365249010,61.29088569,143.26,143.22,151.2]
[1741365249214,18.64964886,143.26,143.22,151.2]
[1741365249432,18.933972,143.3,143.22,151.2]
[1741365249639,0.03,143.31,143.22,151.2]
[1741365249835,0.03,143.31,143.23,0.28432314]
[1741365250148,0.03,143.31,143.24,10.4]
[1741365250634,0.03,143.31,143.29,42.35691369]
[1741365250835,0.03,143.31,143.3,42.35691369]
[1741365251251,0.03,143.31,143.3,173.70921337]
[1741365253040,0.03,143.31,143.3,312.0]
[1741365253233,0.03,143.31,143.27,42.35691369]
[1741365253624,0.03,143.31,143.26,42.35691369]
[1741365253832,18.933972,143.3,143.24,52.75691369]
[1741365254026,42.35691369,143.28,143.22,193.55691369]
[1741365254229,0.03,143.31,143.22,193.55691369]
[1741365254230,81.5,143.29,143.22,151.2]
[1741365254532,4.8865,143.25,143.22,151.2]
[1741365255239,18.933972,143.27,143.22,151.2]
[1741365255440,61.29088569,143.27,143.22,151.2]
[1741365255633,42.35691369,143.27,143.22,151.2]
[1741365256026,8.9338,143.3,143.22,193.55691369]
[1741365256356,42.35691369,143.26,143.22,151.2]
[1741365256653,17.1004,143.27,143.18,42.35691369]
[1741365256852,81.5,143.26,143.21,42.35691369]
[1741365257060,4.049,143.3,143.24,42.35691369]
[1741365257061,81.5,143.3,143.24,42.35691369]
[1741365257358,65.89166255,143.3,143.23,42.35691369]
[1741365257724,0.03,143.31,143.25,42.35691369]
[1741365258033,0.03,143.31,143.28,42.35691369]
[1741365258426,0.03,143.31,143.29,42.35691369]
[1741365258637,0.03,143.31,143.3,42.35691369]
[1741365258830,0.03,143.31,143.27,42.35691369]
[1741365259026,0.03,143.31,143.24,141.75229968]
[1741365259027,0.03,143.31,143.26,42.35691369]
[1741365259276,0.03,143.31,143.27,42.35691369]
[1741365259423,0.03,143.31,143.26,42.35691369]
[1741365259627,0.03,143.31,143.25,42.35691369]
[1741365259832,42.38691369,143.31,143.24,52.75691369]
[1741365260057,0.03,143.31,143.25,42.35691369]
[1741365260438,18.933972,143.3,143.24,52.75691369]
[1741365260635,0.03,143.31,143.26,42.35691369]
[1741365261023,0.03,143.31,143.29,42.35691369]
[1741365261340,0.03,143.31,143.24,52.75691369]
[1741365261341,42.38691369,143.31,143.24,52.75691369]
[1741365261844,0.03,143.31,143.25,42.35691369]
[1741365262349,42.35691369,143.29,143.19,141.75229968]
[1741365262531,42.35691369,143.29,143.19,460.73589968]
[1741365262725,66.17638569,143.28,143.21,42.35691369]
[1741365262930,123.85691369,143.27,143.19,312.0]
[1741365263147,81.5,143.27,143.22,42.35691369]
[1741365263448,65.89206255,143.28,143.21,42.35691369]
[1741365263631,61.29088569,143.27,143.2,42.35691369]
[1741365263832,47.24241369,143.28,143.21,42.35691369]
[1741365264232,4.8855,143.28,143.19,138.33589968]
[1741365264435,42.35691369,143.26,143.19,42.35691369]
[1741365264635,61.29088569,143.21,143.15,151.14]
[1741365264835,42.35691369,143.2,143.15,151.14]
[1741365265150,4.8875,143.22,143.15,151.14]
[1741365265351,61.29088569,143.21,143.15,151.14]
[1741365265563,4.8875,143.22,143.16,42.35691369]
[1741365265767,4.8869,143.24,143.19,42.35691369]
[1741365265965,4.8869,143.24,143.18,42.35691369]
[1741365265966,18.933972,143.23,143.18,42.35691369]
[1741365266138,18.933972,143.23,143.15,282.49229968]
[1741365266139,61.29088569,143.23,143.15,282.49229968]
[1741365266342,81.5,143.23,143.18,42.35691369]
[1741365266567,81.5,143.26,143.2,42.35691369]
[1741365266862,8.4773,143.28,143.22,42.35691369]
[1741365267054,4.0963,143.31,143.25,42.35691369]
[1741365267260,0.03,143.31,143.27,42.35691369]
[1741365267663,0.03,143.31,143.26,42.35691369]
[1741365268264,0.03,143.31,143.22,173.70921337]
[1741365268265,0.03,143.31,143.25,42.35691369]
[1741365268564,123.85691369,143.3,143.23,42.35691369]
[1741365268873,42.35691369,143.28,143.21,200.47961369]
[1741365269059,42.35691369,143.29,143.22,42.35691369]
[1741365269258,42.35691369,143.28,143.21,193.49691369]
[1741365269650,18.933972,143.29,143.21,193.49691369]
[1741365269848,42.35691369,143.29,143.23,42.35691369]
[1741365270044,81.5,143.3,143.25,42.35691369]
[1741365270246,42.35691369,143.27,143.21,151.14]
[1741365270648,18.933972,143.25,143.21,151.14]
[1741365270951,42.35691369,143.25,143.21,151.14]
[1741365271145,42.35691369,143.26,143.21,151.14]
[1741365271343,18.933972,143.25,143.21,151.14]
[1741365271543,42.64123683,143.22,143.15,42.35691369]
[1741365271783,42.35691369,143.22,143.15,42.35691369]
[1741365271962,81.5,143.24,143.16,18.933972]
[1741365272364,81.5,143.24,143.18,42.35691369]
[1741365272570,81.5,143.24,143.19,42.35691369]
[1741365272777,81.5,143.24,143.19,6.9836]
[1741365272985,81.5,143.24,143.21,42.35691369]
[1741365273148,18.64964886,143.25,143.18,6.9841]
[1741365273354,0.28432314,143.24,143.15,131.35229968]
[1741365273654,86.3862,143.26,143.14,42.35691369]
[1741365273655,42.35691369,143.21,143.14,42.35691369]
[1741365273866,81.5,143.21,143.15,42.35691369]
[1741365274066,42.35691369,143.23,143.16,42.35691369]
[1741365274270,61.29088569,143.24,143.17,42.35691369]
[1741365274681,81.5,143.25,143.18,42.35691369]
[1741365274853,128.74361369,143.25,143.19,6.9837]
[1741365275050,81.5,143.25,143.19,49.34061369]
[1741365275982,81.5,143.28,143.22,42.35691369]
[1741365276275,81.5,143.28,143.23,42.35691369]
[1741365276572,81.5,143.28,143.19,34.823]
[1741365276573,61.00656255,143.28,143.21,42.35691369]
[1741365276794,42.35691369,143.27,143.21,6.9827]
[1741365276961,47.24251369,143.28,143.22,42.35691369]
[1741365277279,81.5,143.3,143.23,42.35691369]
[1741365277280,128.74181369,143.3,143.23,42.35691369]
[1741365277461,128.74181369,143.3,143.21,24.4395]
[1741365277462,42.35691369,143.28,143.22,42.35691369]
[1741365277665,18.64964886,143.26,143.2,42.35691369]
[1741365277859,142.50656255,143.26,143.2,42.35691369]
[1741365278054,17.097,143.3,143.18,42.35691369]
[1741365278261,81.5,143.29,143.24,42.35691369]
[1741365278468,18.933972,143.26,143.18,10.38]
[1741365278668,142.79088569,143.26,143.18,10.38]
[1741365278976,4.8868,143.25,143.19,42.35691369]
[1741365279363,81.5,143.28,143.21,42.35691369]
[1741365279558,81.5,143.28,143.22,42.35691369]
[1741365279966,47.24171369,143.3,143.23,42.35691369]
[1741365280151,61.00656255,143.29,143.22,42.35691369]
[1741365280354,42.35691369,143.29,143.22,42.35691369]
[1741365280555,61.00656255,143.29,143.22,42.35691369]
[1741365280756,18.64964886,143.29,143.23,42.35691369]
[1741365280958,86.3853,143.29,143.23,42.35691369]
[1741365281157,0.03,143.31,143.26,42.35691369]
[1741365281379,0.03,143.31,143.28,42.35691369]
[1741365281692,0.03,143.31,143.29,42.35691369]
[1741365282071,0.03,143.31,143.26,42.35691369]
[1741365282265,0.03,143.31,143.27,42.35691369]
[1741365282466,4.9146,143.31,143.27,42.35691369]
[1741365282661,47.27151369,143.31,143.25,52.73691369]
[1741365282882,4.9146,143.31,143.25,59.71741369]
[1741365283086,0.03,143.31,143.27,42.35691369]
[1741365283287,0.03,143.31,143.29,42.35691369]
[1741365283496,0.03,143.31,143.25,478.16479968]
[1741365283674,0.03,143.31,143.3,42.35691369]
[1741365284072,0.03,143.31,143.3,173.70921337]
[1741365284380,0.03,143.31,143.3,192.64318537]
[1741365284559,0.03,143.43,143.35,18.933972]
[1741365284755,0.03,143.43,143.42,42.35691369]
[1741365284988,0.03,143.43,143.42,180.68171337]
[1741365285200,0.03,143.43,143.42,42.35691369]
[1741365285492,0.03,143.43,143.38,10.38]
[1741365285862,42.38691369,143.43,143.36,193.49691369]
[1741365286259,0.03,143.43,143.36,324.84921337]
[1741365286482,0.03,143.43,143.39,42.35691369]
[1741365286872,0.03,143.43,143.38,42.35691369]
[1741365287094,0.03,143.43,143.39,42.35691369]
[1741365287259,0.03,143.43,143.38,42.35691369]
[1741365287463,0.03,143.43,143.36,594.49229968]
[1741365287464,42.38691369,143.43,143.36,324.84921337]
[1741365287882,42.35691369,143.42,143.36,282.49229968]
[1741365288096,42.35691369,143.42,143.36,151.14]
[1741365288307,61.29088569,143.4,143.36,151.14]
[1741365288475,42.35691369,143.38,143.31,42.35691369]
[1741365288676,42.35691369,143.4,143.33,42.35691369]
[1741365288886,47.23761369,143.42,143.35,42.35691369]
[1741365289081,47.23761369,143.42,143.36,42.35691369]
[1741365289275,47.23761369,143.42,143.33,42.35691369]
[1741365289276,100.433972,143.41,143.33,42.35691369]
[1741365289582,100.433972,143.41,143.3,131.35229968]
[1741365289583,42.35691369,143.38,143.32,42.35691369]
[1741365289787,42.35691369,143.4,143.33,42.35691369]
[1741365290191,42.35691369,143.39,143.33,42.35691369]
[1741365290567,42.35691369,143.4,143.33,42.35691369]
[1741365290768,42.35691369,143.39,143.32,42.35691369]
[1741365291108,42.35691369,143.37,143.3,42.35691369]
[1741365291481,42.35691369,143.36,143.28,151.1]
[1741365291695,42.35691369,143.36,143.29,42.35691369]
[1741365291867,42.35691369,143.35,143.29,42.35691369]
[1741365292064,42.35691369,143.35,143.28,151.1]
[1741365292304,42.35691369,143.35,143.28,193.45691369]
[1741365292601,42.35691369,143.34,143.28,151.1]
[1741365292984,47.24001369,143.35,143.28,193.45691369]
[1741365293183,4.8831,143.35,143.29,42.35691369]
[1741365293383,47.24001369,143.35,143.28,193.45691369]
[1741365293609,4.8828,143.36,143.3,42.35691369]
[1741365293800,23.53244886,143.36,143.29,42.35691369]
[1741365293974,23.53244886,143.36,143.28,151.1]
[1741365293975,65.88936255,143.36,143.28,151.1]
[1741365294172,81.5,143.37,143.31,42.35691369]
[1741365294372,4.8822,143.38,143.28,158.079]
[1741365294373,18.933972,143.39,143.32,42.35691369]
[1741365294587,18.933972,143.39,143.28,289.43129968]
[1741365294588,61.29088569,143.37,143.3,42.35691369]
[1741365294871,42.35691369,143.37,143.3,42.35691369]
[1741365295067,47.23961369,143.37,143.3,42.35691369]
[1741365295895,4.8811,143.41,143.31,42.35691369]
[1741365296099,47.23801369,143.41,143.34,42.35691369]
[1741365296277,42.35691369,143.4,143.33,42.35691369]
[1741365296599,47.23801369,143.41,143.31,131.35229968]
[1741365296904,42.35691369,143.4,143.31,131.35229968]
[1741365297081,42.35691369,143.41,143.34,42.35691369]
[1741365297270,4.881,143.42,143.36,42.35691369]
[1741365297474,0.03,143.43,143.39,42.35691369]
[1741365297691,0.03,143.43,143.38,42.35691369]
[1741365297891,0.03,143.43,143.39,42.35691369]
[1741365298192,0.03,143.43,143.42,42.35691369]
[1741365298895,0.03,143.43,143.39,193.41691369]
[1741365299091,0.03,143.43,143.4,42.35691369]
[1741365299291,0.03,143.43,143.41,42.35691369]
[1741365299683,0.03,143.43,143.42,42.35691369]
[1741365300279,0.03,143.43,143.39,151.06]
[1741365300473,0.03,143.43,143.39,193.41691369]
[1741365300681,0.03,143.43,143.41,42.35691369]
[1741365300896,0.03,143.43,143.42,42.35691369]
[1741365301089,0.03,143.43,143.42,180.68171337]
[1741365301294,0.03,143.43,143.42,241.97259906]
[1741365301492,0.03,143.43,143.42,52.71691369]
[1741365301692,0.03,143.43,143.42,10.36]
[1741365301897,0.03,143.43,143.39,151.06]
[1741365301898,0.03,143.43,143.4,42.35691369]
[1741365302098,0.03,143.43,143.42,42.35691369]
[1741365302300,0.03,143.43,143.41,42.35691369]
[1741365302504,0.03,143.43,143.39,158.0338]
[1741365302505,0.03,143.43,143.39,151.06]
[1741365302694,100.463972,143.43,143.39,151.06]
[1741365302894,42.35691369,143.4,143.32,131.35229968]
[1741365303208,123.88691369,143.43,143.36,42.35691369]
[1741365303403,0.03,143.43,143.38,42.35691369]
[1741365303726,42.38691369,143.43,143.37,42.35691369]
[1741365303903,42.35691369,143.41,143.33,131.35229968]
[1741365304101,42.35691369,143.4,143.34,42.35691369]
[1741365304288,42.35691369,143.41,143.34,42.35691369]
[1741365304911,42.35691369,143.4,143.33,42.35691369]
[1741365305089,42.35691369,143.4,143.31,289.33009968]
[1741365305090,4.8817,143.39,143.32,6.9772]
[1741365305418,47.23861369,143.39,143.32,42.35691369]
[1741365305587,42.35691369,143.38,143.31,193.35691369]
[1741365305908,42.35691369,143.37,143.31,151.0]
[1741365306104,42.35691369,143.35,143.31,151.0]
[1741365306315,61.29088569,143.38,143.31,151.0]
[1741365306602,42.35691369,143.38,143.31,193.35691369]
[1741365306789,4.8817,143.39,143.33,42.35691369]
[1741365306996,65.88826255,143.39,143.32,42.35691369]
[1741365307197,128.73801369,143.41,143.34,42.35691369]
[1741365307405,81.53,143.43,143.33,0.28432314]
[1741365307705,0.03,143.43,143.38,312.0]
[1741365308014,0.03,143.43,143.39,19.97959667]
[1741365308185,0.03,143.43,143.39,132.39792435]
[1741365308391,0.03,143.43,143.39,131.35229968]
[1741365308713,0.03,143.43,143.42,42.35691369]
[1741365309029,0.03,143.43,143.38,141.69229968]
[1741365309198,0.03,143.43,143.39,42.35691369]
[1741365309520,0.03,143.43,143.41,42.35691369]
[1741365309886,0.03,143.43,143.42,42.35691369]
[1741365310298,0.03,143.43,143.42,324.72921337]
[1741365310501,0.03,143.43,143.42,325.01353651]
[1741365310718,0.03,143.43,143.42,324.72921337]
[1741365311102,0.03,143.43,143.42,331.70171337]
[1741365311410,0.03,143.43,143.42,643.70171337]
[1741365311611,0.03,143.43,143.42,636.72921337]
[1741365311820,0.03,143.43,143.42,643.70171337]
[1741365312318,0.03,143.43,143.42,649.51099493]
[1741365312622,0.03,143.46,143.42,649.51099493]
[1741365312623,0.03,143.46,143.43,84.71382738]
[1741365312790,0.03,143.46,143.45,42.64123683]
[1741365312991,0.03,143.46,143.45,72.67598058]
[1741365313296,0.03,143.46,143.45,59.66791369]
[1741365313693,0.03,143.46,143.45,191.02021337]
[1741365313888,0.03,143.46,143.45,209.95418537]
[1741365314115,0.03,143.5,143.46,0.28432314]
[1741365314288,0.03,143.5,143.49,42.35691369]
[1741365314623,0.03,143.5,143.49,173.99353651]
[1741365314811,0.03,143.5,143.49,131.35229968]
[1741365315121,0.03,143.5,143.49,173.70921337]
[1741365315414,0.03,143.5,143.49,492.67831337]
[1741365316004,0.03,143.5,143.49,485.70921337]
[1741365316215,0.03,143.5,143.49,173.70921337]
[1741365316585,0.03,143.5,143.49,131.35229968]